Workbook

Sheet WBS Format
G1: Tabriz Petrochemical Company | H1: Vendor Logo
G3: 310 KTPA HDPE Plant
G5: DOCUMENT TITLE: | H5: Vendor Name :
H6: XXXXX Co.
G7: Work Breakdown Structure | H7: PO. No.: | I7: XXXXXX
A9: Project | B9: Level No. | C9: Phase | D9: Sub-phase | E9: Work Package | F9: Activity ID | G9: Activity Title | H9: WBS Category | I9: Weight in Overall | J9: Relative Weight in Levels
A10: 0 | E10: Project Name | I10: =SUMIFS(I11:I192,$F11:$F192,"<>") -> 0.6875
B11: 1 | C11: Project Management and Control | H11: PHASE | I11: =SUMIFS(I12:I27,$F12:$F27,"<>") -> 0.006
B12: 2 | C12: 1.1 | D12: Milestones | H12: MLS | I12: =SUMIFS(I13:I19,$F13:$F19,"<>") -> 0
B13: 3 | C13: 1.1.1 | E13: Key Milestones | H13: MLS | I13: =SUMIFS(I14:I19,$F14:$F19,"<>") -> 0 | J13: =SUMIFS(J14:J19,$F14:$F19,"<>") -> 0
B14: 4 | F14: GN.MLS.0001 | G14: PO Sign Date | H14: MLS | I14: 0 | J14: =IF($I$13>0,I14/$I$13,0) -> 0
B15: 4 | F15: GN.MLS.0002 | G15: Kick-off Meeting | H15: MLS | I15: 0 | J15: =IF($I$13>0,I15/$I$13,0) -> 0
B16: 4 | F16: GN.MLS.0003 | G16: Receiving Advanced Payment | H16: MLS | I16: 0 | J16: 0
B17: 4 | F17: GN.MLS.0004 | G17: Project Start | H17: MLS | I17: 0 | J17: 0
B18: 4 | F18: GN.MLS.0005 | G18: PIM | H18: MLS | I18: 0 | J18: 0
B19: 4 | F19: GN.MLS.0006 | G19: Project Finish | H19: MLS | I19: 0 | J19: 0
B20: 2 | C20: 1.2 | D20: General and Control Documents | H20: Doc Type | I20: =SUMIFS(I21:I27,$F21:$F27,"<>") -> 0.006
B21: 3 | C21: 1.2.1 | E21: General Documents | H21: Doc Type | I21: =SUMIFS(I22:I27,$F22:$F27,"<>") -> 0.006 | J21: =SUMIFS(J22:J27,$F22:$F27,"<>") -> 1
B22: 4 | F22: GN.WBS.0011 | G22: WBS | H22: Activity | I22: 0.001 | J22: =IF($I$21>0,I22/$I$21,0) -> 0.1666666667
B23: 4 | F23: GN.SCH.0011 | G23: Detail Time Schedule | H23: Activity | I23: 0.002 | J23: 0.3333333333
B24: 4 | F24: GN.LST.0021 | G24: Final Book Index | H24: Activity | I24: 0.001 | J24: 0.1666666667
B25: 4 | F25: GN.LST.0031 | G25: Sub-Vendor List | H25: Activity | I25: 0.001 | J25: =IF($I$21>0,I25/$I$21,0) -> 0.1666666667
B26: 4 | F26: GN.LST.0041 | G26: Spare Part List | H26: Activity | I26: 0.0005 | J26: =IF($I$21>0,I26/$I$21,0) -> 0.08333333333
B27: 4 | F27: GN.PRC.0011 | G27: Packing, Marking And Shipping Procedure | H27: Activity | I27: 0.0005 | J27: =IF($I$21>0,I27/$I$21,0) -> 0.08333333333
B28: 1 | C28: Engineering | H28: PHASE | I28: =SUMIFS(I29:I64,$F29:$F64,"<>") -> 0.006
B29: 2 | C29: 2.1 | D29: Engineering Common Docs (Related to All Tags) | H29: Priority | I29: =SUMIFS(I30:I37,$F30:$F37,"<>") -> 0.006
B30: 3 | C30: 2.1.2 | E30: Common Documents ( Such as Procedures, Specifications, Reports, WQR, WPS, PQR …) | H30: Doc Type | I30: =SUMIFS(I31:I37,$F31:$F37,"<>") -> 0.006 | J30: =SUMIFS(J31:J37,$F31:$F37,"<>") -> 1
B31: 4 | F31: EN.LST.0111 | G31: VPIS | H31: Activity | I31: 0.001 | J31: =IF($I$30>0,I31/$I$30,0) -> 0.1666666667
B32: 4 | F32: EN.PRC.0111 | G32: Fabrication Procedures | H32: Activity | I32: 0.001 | J32: 0.1666666667
B33: 4 | F33: EN.PRC.0121 | G33: Quality Control Procedure | H33: Activity | I33: 0.001 | J33: 0.1666666667
B34: 4 | F34: EN.PRC.0131 | G34: Inspection and Test Plan | H34: Activity | I34: 0.001 | J34: 0.1666666667
B35: 4 | F35: EN.PRC.0141 | G35: N.D.E Procedure | H35: Activity | I35: 0.0005 | J35: 0.08333333333
B36: 4 | F36: EN.SPC.0011 | G36: Welding Procedure Specification Related to All Tags | H36: Activity | I36: 0.0005 | J36: 0.08333333333
B37: 4 | F37: EN.WQR.0021 | G37: Welder Qualification Records (WQR) | H37: Activity | I37: 0.001 | J37: 0.1666666667
B38: 2 | C38: 2.2 | D38: Priority I (Documents Related to Tag XXX, Tag Z) | H38: Priority | I38: =SUMIFS(I39:I47,$F39:$F47,"<>") -> 0
B39: 3 | C39: 2.2.1 | E39: Data Sheets | H39: Doc Type | I39: =SUMIFS(I40:I41,$F40:$F41,"<>") -> 0 | J39: =SUMIFS(J40:J41,$F40:$F41,"<>") -> 0
B40: 4 | F40: EN.DSH.1011 | G40: Data Sheet for Tag XXX | H40: Activity | J40: =IF($I$39>0,I40/$I$39,0) -> 0
B41: 4 | F41: EN.DSH.1021 | G41: Data Sheet for Tag Z | H41: Activity | J41: =IF($I$39>0,I41/$I$39,0) -> 0
B42: 3 | C42: 2.2.2 | E42: Calculations | H42: Doc Type | I42: =SUMIFS(I43:I44,$F43:$F44,"<>") -> 0 | J42: =SUMIFS(J43:J44,$F43:$F44,"<>") -> 0
B43: 4 | F43: EN.CAL.1011 | G43: Calculation sheet for Tag XXX | H43: Activity | J43: =IF($I$42>0,I43/$I$42,0) -> 0
B44: 4 | F44: EN.CAL.1021 | G44: Calculation sheet for Tag Z | H44: Activity | J44: =IF($I$42>0,I44/$I$42,0) -> 0
B45: 3 | C45: 2.2.3 | E45: Drawings | H45: Doc Type | I45: =SUMIFS(I46:I47,$F46:$F47,"<>") -> 0 | J45: =SUMIFS(J46:J47,$F46:$F47,"<>") -> 0
B46: 4 | F46: EN.DWG.1011 | G46: General Arrangement for Tag XXX | H46: Activity | J46: =IF($I$45>0,I46/$I$45,0) -> 0
B47: 4 | F47: EN.DWG.1021 | G47: General Arrangement for Tag Z | H47: Activity | J47: =IF($I$45>0,I47/$I$45,0) -> 0
B48: 2 | C48: 2.3 | D48: Priority II (Documents Related to Tag WWW, Tag YYY) | H48: Priority | I48: =SUMIFS(I49:I57,$F49:$F57,"<>") -> 0
B49: 3 | C49: 2.3.1 | E49: Data Sheets | H49: Doc Type | I49: =SUMIFS(I50:I51,$F50:$F51,"<>") -> 0 | J49: =SUMIFS(J50:J51,$F50:$F51,"<>") -> 0
B50: 4 | F50: EN.DSH.2011 | G50: Data Sheet for Tag WWW | H50: Activity | J50: =IF($I$49>0,I50/$I$49,0) -> 0
B51: 4 | F51: EN.DSH.2021 | G51: Data Sheet for Tag YYY | H51: Activity | J51: =IF($I$49>0,I51/$I$49,0) -> 0
B52: 3 | C52: 2.3.2 | E52: Calculations | H52: Doc Type | I52: =SUMIFS(I53:I54,$F53:$F54,"<>") -> 0 | J52: =SUMIFS(J53:J54,$F53:$F54,"<>") -> 0
B53: 4 | F53: EN.CAL.2011 | G53: Calculation sheet for Tag WWW | H53: Activity | J53: =IF($I$52>0,I53/$I$52,0) -> 0
B54: 4 | F54: EN.CAL.2021 | G54: Calculation sheet for Tag YYY | H54: Activity | J54: =IF($I$52>0,I54/$I$52,0) -> 0
B55: 3 | C55: 2.3.3 | E55: Drawings | H55: Doc Type | I55: =SUMIFS(I56:I57,$F56:$F57,"<>") -> 0 | J55: =SUMIFS(J56:J57,$F56:$F57,"<>") -> 0
B56: 4 | F56: EN.DWG.2011 | G56: General Arrangement for Tag WWW | H56: Activity | J56: =IF($I$55>0,I56/$I$55,0) -> 0
B57: 4 | F57: EN.DWG.2021 | G57: General Arrangement for Tag YYY | H57: Activity | J57: =IF($I$55>0,I57/$I$55,0) -> 0
B58: 2 | C58: 2.4 | D58: Priority III (Documents Related to Tag PPP, Tag GGG, Tag SSS) | H58: Priority | I58: =SUMIFS(I59:I64,$F59:$F64,"<>") -> 0
B59: 3 | C59: 2.4.1 | E59: Data Sheets | H59: Doc Type | I59: =SUMIFS(I60:I60,$F60:$F60,"<>") -> 0 | J59: =SUMIFS(J60:J60,$F60:$F60,"<>") -> 0
B60: 4 | F60: EN.DSH.3011 | G60: Data Sheet for Tag GGG | H60: Activity | J60: =IF($I$59>0,I60/$I$59,0) -> 0
B61: 3 | C61: 2.4.2 | E61: Calculations | H61: Doc Type | I61: =SUMIFS(I62:I62,$F62:$F62,"<>") -> 0 | J61: =SUMIFS(J62:J62,$F62:$F62,"<>") -> 0
B62: 4 | F62: EN.SCH.3011 | G62: Calculation sheet for Tag GGG | H62: Activity | J62: =IF($I$61>0,I62/$I$61,0) -> 0
B63: 3 | C63: 2.4.3 | E63: Drawings | H63: Doc Type | I63: =SUMIFS(I64:I64,$F64:$F64,"<>") -> 0 | J63: =SUMIFS(J64:J64,$F64:$F64,"<>") -> 0
B64: 4 | F64: EN.DWG.3011 | G64: General Arrangement for Tag GGG | H64: Activity | J64: =IF($I$63>0,I64/$I$63,0) -> 0
B65: 1 | C65: Procurement and Supply of Materials (Based on Sub-vendor List) | H65: PHASE | I65: =SUMIFS(I66:I80,$F66:$F80,"<>") -> 0.1055
B66: 2 | C66: 3.1 | D66: P.O #01 | H66: P.O | I66: =SUMIFS(I67:I70,$F67:$F70,"<>") -> 0.0525
B67: 3 | C67: 3.1.1 | E67: (e.g. Raw Material) | H67: Material Name | I67: =SUMIFS(I68:I70,$F68:$F70,"<>") -> 0.0525 | J67: =SUMIFS(J68:J70,$F68:$F70,"<>") -> 1
B68: 4 | F68: PC.PO1.1011 | G68: Purchase Order Placement | H68: Activity | I68: 0.015 | J68: =IF($I$67>0,I68/$I$67,0) -> 0.2857142857
B69: 4 | F69: PC.PO1.1012 | G69: Raw Material Supply/Fabrication | H69: Activity | I69: 0.0075 | J69: =IF($I$67>0,I69/$I$67,0) -> 0.1428571429
B70: 4 | F70: PC.PO1.1013 | G70: Delivery At Vendor Shop | H70: Activity | I70: 0.03 | J70: 0.5714285714
B71: 2 | C71: 3.2 | D71: P.O #02 | H71: P.O | I71: =SUMIFS(I72:I75,$F72:$F75,"<>") -> 0.025
B72: 3 | C72: 3.2.1 | E72: (e.g. Driver) | H72: Material Name | I72: =SUMIFS(I73:I75,$F73:$F75,"<>") -> 0.025 | J72: =SUMIFS(J73:J75,$F73:$F75,"<>") -> 1
B73: 4 | F73: PC.PO2.2011 | G73: Purchase Order Placement | H73: Activity | I73: 0.01 | J73: =IF($I$72>0,I73/$I$72,0) -> 0.4
B74: 4 | F74: PC.PO2.2012 | G74: Raw Material Supply/Fabrication | H74: Activity | I74: 0.005 | J74: =IF($I$72>0,I74/$I$72,0) -> 0.2
B75: 4 | F75: PC.PO2.2013 | G75: Delivery At Vendor Shop | H75: Activity | I75: 0.01 | J75: =IF($I$72>0,I75/$I$72,0) -> 0.4
B76: 2 | C76: 3.3 | D76: P.O #03 | H76: P.O | I76: =SUMIFS(I77:I80,$F77:$F80,"<>") -> 0.028
B77: 3 | C77: 3.3.1 | E77: (e.g. CS & SS Pipe) | H77: Material Name | I77: =SUMIFS(I78:I80,$F78:$F80,"<>") -> 0.028 | J77: =SUMIFS(J78:J80,$F78:$F80,"<>") -> 1
B78: 4 | F78: PC.PO3.3011 | G78: Purchase Order Placement | H78: Activity | I78: 0.008 | J78: =IF($I$77>0,I78/$I$77,0) -> 0.2857142857
B79: 4 | F79: PC.PO3.3012 | G79: Raw Material Supply/Fabrication | H79: Activity | I79: 0.004 | J79: =IF($I$77>0,I79/$I$77,0) -> 0.1428571429
B80: 4 | F80: PC.PO3.3013 | G80: Delivery At Vendor Shop | H80: Activity | I80: 0.016 | J80: 0.5714285714
B81: 1 | C81: Manufacturing | H81: PHASE | I81: =SUMIFS(I82:I153,$F82:$F153,"<>") -> 0.32
B82: 2 | C82: 4.1 | D82: Priority I (Documents Related to Tag XXX, Tag Z) | H82: Priority | I82: =SUMIFS(I83:I112,$F83:$F112,"<>") -> 0.2
B83: 3 | C83: 4.1.1 | E83: Tag XXX | H83: Tagged Items | I83: =SUMIFS(I84:I97,$F84:$F97,"<>") -> 0.15 | J83: =SUMIFS(J84:J97,$F84:$F97,"<>") -> 1
B84: 4 | F84: MF.XXX.1001 | G84: Cutting Component I of Tag XXX | H84: Activity | I84: 0.0075 | J84: =IF($I$83>0,I84/$I$83,0) -> 0.05
B85: 4 | F85: MF.XXX.1002 | G85: Welding Component I of Tag XXX | H85: Activity | I85: 0.0075 | J85: =IF($I$83>0,I85/$I$83,0) -> 0.05
B86: 4 | F86: MF.XXX.1003 | G86: forming Component I of Tag XXX | H86: Activity | I86: 0.0075 | J86: 0.05
B87: 4 | F87: MF.XXX.1004 | G87: Course No. Of Component I of Tag XXX | H87: Activity | I87: 0.0075 | J87: 0.05
B88: 4 | F88: MF.XXX.1005 | G88: Cutting Of Component I of Tag XXX | H88: Activity | I88: 0.0075 | J88: 0.05
B89: 4 | F89: MF.XXX.1006 | G89: 1st Rolling Of Component I of Tag XXX | H89: Activity | I89: 0.0075 | J89: 0.05
B90: 4 | F90: MF.XXX.1007 | G90: 2nd Rolling Of Component I of Tag XXX | H90: Activity | I90: 0.0075 | J90: 0.05
B91: 4 | F91: MF.XXX.1008 | G91: Fabricating Base Plate of Tag XXX | H91: Activity | I91: 0.0075 | J91: 0.05
B92: 4 | F92: MF.XXX.1009 | G92: Hydrostatic test of Tag XXX | H92: Activity | I92: 0.0075 | J92: 0.05
B93: 4 | F93: MF.XXX.1010 | G93: Component Assembly of Tag XXX | H93: Activity | I93: 0.015 | J93: 0.1
B94: 4 | F94: MF.XXX.1011 | G94: Performance Test of Tag XXX | H94: Activity | I94: 0.0225 | J94: 0.15
B95: 4 | F95: MF.XXX.1012 | G95: Final Assembly of Tag XXX | H95: Activity | I95: 0.0225 | J95: 0.15
B96: 4 | F96: MF.XXX.1013 | G96: Running Test of Tag XXX | H96: Activity | I96: 0.015 | J96: 0.1
B97: 4 | F97: MF.XXX.1014 | G97: Painting of Tag XXX | H97: Activity | I97: 0.0075 | J97: 0.05
B98: 3 | C98: 4.1.2 | E98: Tag ZZZ | H98: Tagged Items | I98: =SUMIFS(I99:I113,$F99:$F113,"<>") -> 0.05 | J98: =SUMIFS(J99:J113,$F99:$F113,"<>") -> 1
B99: 4 | F99: MF.ZZZ.1001 | G99: Cutting Component I of Tag Z | H99: Activity | I99: 0.0025 | J99: =IF($I$98>0,I99/$I$98,0) -> 0.05
B100: 4 | F100: MF.ZZZ.1002 | G100: Welding Component I of Tag Z | H100: Activity | I100: 0.0025 | J100: =IF($I$98>0,I100/$I$98,0) -> 0.05
B101: 4 | F101: MF.ZZZ.1003 | G101: forming Component I of Tag Z | H101: Activity | I101: 0.0025 | J101: 0.05
B102: 4 | F102: MF.ZZZ.1004 | G102: Course No. Of Component I of Tag Z | H102: Activity | I102: 0.0025 | J102: 0.05
B103: 4 | F103: MF.ZZZ.1005 | G103: Cutting Of Component I of Tag Z | H103: Activity | I103: 0.0025 | J103: 0.05
B104: 4 | F104: MF.ZZZ.1006 | G104: 1st Rolling Of Component I of Tag Z | H104: Activity | I104: 0.0025 | J104: 0.05
B105: 4 | F105: MF.ZZZ.1007 | G105: 2nd Rolling Of Component I of Tag Z | H105: Activity | I105: 0.0025 | J105: 0.05
B106: 4 | F106: MF.ZZZ.1008 | G106: Fabricating Base Plate of Tag Z | H106: Activity | I106: 0.0025 | J106: 0.05
B107: 4 | F107: MF.ZZZ.1009 | G107: Hydrostatic test of Tag Z | H107: Activity | I107: 0.0025 | J107: 0.05
B108: 4 | F108: MF.ZZZ.1010 | G108: Component Assembly of Tag Z | H108: Activity | I108: 0.005 | J108: 0.1
B109: 4 | F109: MF.ZZZ.1011 | G109: Performance Test of Tag Z | H109: Activity | I109: 0.0075 | J109: 0.15
B110: 4 | F110: MF.ZZZ.1012 | G110: Final Assembly of Tag Z | H110: Activity | I110: 0.0075 | J110: 0.15
B111: 4 | F111: MF.ZZZ.1013 | G111: Running Test of Tag Z | H111: Activity | I111: 0.005 | J111: 0.1
B112: 4 | F112: MF.ZZZ.1014 | G112: Painting of Tag Z | H112: Activity | I112: 0.0025 | J112: 0.05
B113: 2 | C113: 4.2 | D113: Priority II (Documents Related to Tag WWW, Tag YYY) | H113: Priority | I113: =SUMIFS(I114:I143,$F114:$F143,"<>") -> 0.12
B114: 3 | C114: 4.2.1 | E114: Tag WWW | H114: Tagged Items | I114: =SUMIFS(I115:I128,$F115:$F128,"<>") -> 0.04 | J114: =SUMIFS(J115:J128,$F115:$F128,"<>") -> 1
B115: 4 | F115: MF.WWW.1001 | G115: Cutting Component I of Tag WWW | H115: Activity | I115: 0.002 | J115: =IF($I$114>0,I115/$I$114,0) -> 0.05
B116: 4 | F116: MF.WWW.1002 | G116: Welding Component I of Tag WWW | H116: Activity | I116: 0.002 | J116: =IF($I$114>0,I116/$I$114,0) -> 0.05
B117: 4 | F117: MF.WWW.1003 | G117: forming Component I of Tag WWW | H117: Activity | I117: 0.002 | J117: 0.05
B118: 4 | F118: MF.WWW.1004 | G118: Course No. Of Component I of Tag WWW | H118: Activity | I118: 0.002 | J118: 0.05
B119: 4 | F119: MF.WWW.1005 | G119: Cutting Of Component I of Tag WWW | H119: Activity | I119: 0.002 | J119: 0.05
B120: 4 | F120: MF.WWW.1006 | G120: 1st Rolling Of Component I of Tag WWW | H120: Activity | I120: 0.002 | J120: 0.05
B121: 4 | F121: MF.WWW.1007 | G121: 2nd Rolling Of Component I of Tag WWW | H121: Activity | I121: 0.002 | J121: 0.05
B122: 4 | F122: MF.WWW.1008 | G122: Fabricating Base Plate of Tag WWW | H122: Activity | I122: 0.002 | J122: 0.05
B123: 4 | F123: MF.WWW.1009 | G123: Hydrostatic test of Tag WWW | H123: Activity | I123: 0.002 | J123: 0.05
B124: 4 | F124: MF.WWW.1010 | G124: Component Assembly of Tag WWW | H124: Activity | I124: 0.004 | J124: 0.1
B125: 4 | F125: MF.WWW.1011 | G125: Performance Test of Tag WWW | H125: Activity | I125: 0.006 | J125: 0.15
B126: 4 | F126: MF.WWW.1012 | G126: Final Assembly of Tag WWW | H126: Activity | I126: 0.006 | J126: 0.15
B127: 4 | F127: MF.WWW.1013 | G127: Running Test of Tag WWW | H127: Activity | I127: 0.004 | J127: 0.1
B128: 4 | F128: MF.WWW.1014 | G128: Painting of Tag WWW | H128: Activity | I128: 0.002 | J128: 0.05
B129: 3 | C129: 4.2.2 | E129: Tag YYY | H129: Tagged Items | I129: =SUMIFS(I130:I144,$F130:$F144,"<>") -> 0.08 | J129: =SUMIFS(J130:J144,$F130:$F144,"<>") -> 1
B130: 4 | F130: MF.YYY.1001 | G130: Cutting Component I of Tag YYY | H130: Activity | I130: 0.004 | J130: =IF($I$129>0,I130/$I$129,0) -> 0.05
B131: 4 | F131: MF.YYY.1002 | G131: Welding Component I of Tag YYY | H131: Activity | I131: 0.004 | J131: =IF($I$129>0,I131/$I$129,0) -> 0.05
B132: 4 | F132: MF.YYY.1003 | G132: forming Component I of Tag YYY | H132: Activity | I132: 0.004 | J132: 0.05
B133: 4 | F133: MF.YYY.1004 | G133: Course No. Of Component I of Tag YYY | H133: Activity | I133: 0.004 | J133: 0.05
B134: 4 | F134: MF.YYY.1005 | G134: Cutting Of Component I of Tag YYY | H134: Activity | I134: 0.004 | J134: 0.05
B135: 4 | F135: MF.YYY.1006 | G135: 1st Rolling Of Component I of Tag YYY | H135: Activity | I135: 0.004 | J135: 0.05
B136: 4 | F136: MF.YYY.1007 | G136: 2nd Rolling Of Component I of Tag YYY | H136: Activity | I136: 0.004 | J136: 0.05
B137: 4 | F137: MF.YYY.1008 | G137: Fabricating Base Plate of Tag YYY | H137: Activity | I137: 0.004 | J137: 0.05
B138: 4 | F138: MF.YYY.1009 | G138: Hydrostatic test of Tag YYY | H138: Activity | I138: 0.004 | J138: 0.05
B139: 4 | F139: MF.YYY.1010 | G139: Component Assembly of Tag YYY | H139: Activity | I139: 0.008 | J139: 0.1
B140: 4 | F140: MF.YYY.1011 | G140: Performance Test of Tag YYY | H140: Activity | I140: 0.012 | J140: 0.15
B141: 4 | F141: MF.YYY.1012 | G141: Final Assembly of Tag YYY | H141: Activity | I141: 0.012 | J141: 0.15
B142: 4 | F142: MF.YYY.1013 | G142: Running Test of Tag YYY | H142: Activity | I142: 0.008 | J142: 0.1
B143: 4 | F143: MF.YYY.1014 | G143: Painting of Tag YYY | H143: Activity | I143: 0.004 | J143: 0.05
B144: 2 | C144: 4.3 | D144: Priority III (Documents Related to Tag PPP, Tag GGG, Tag SSS) | H144: Priority | I144: =SUMIFS(I145:I153,$F145:$F153,"<>") -> 0
B145: 3 | C145: 4.3.1 | E145: Tag PPP | H145: Tagged Items | I145: =SUMIFS(I146:I147,$F146:$F147,"<>") -> 0 | J145: =SUMIFS(J146:J147,$F146:$F147,"<>") -> 0
B146: 4 | H146: Activity | J146: =IF($I$145>0,I146/$I$145,0) -> 0
B147: 4 | H147: Activity | J147: =IF($I$145>0,I147/$I$145,0) -> 0
B148: 3 | C148: 4.3.2 | E148: Tag GGG | H148: Tagged Items | I148: =SUMIFS(I149:I150,$F149:$F150,"<>") -> 0 | J148: =SUMIFS(J149:J150,$F149:$F150,"<>") -> 0
B149: 4 | H149: Activity | J149: =IF($I$148>0,I149/$I$148,0) -> 0
B150: 4 | H150: Activity | J150: =IF($I$148>0,I150/$I$148,0) -> 0
B151: 3 | C151: 4.3.3 | E151: Tag SSS | H151: Tagged Items | I151: =SUMIFS(I152:I153,$F152:$F153,"<>") -> 0 | J151: =SUMIFS(J152:J153,$F152:$F153,"<>") -> 0
B152: 4 | H152: Activity | J152: =IF($I$151>0,I152/$I$151,0) -> 0
B153: 4 | H153: Activity | J153: =IF($I$151>0,I153/$I$151,0) -> 0
B154: 1 | C154: Final Inspection and Test | H154: PHASE | I154: =SUMIFS(I155:I172,$F155:$F172,"<>") -> 0.1
B155: 2 | C155: 5.1 | D155: Priority I (Documents Related to Tag XXX, Tag Z) | H155: Priority | I155: =SUMIFS(I156:I161,$F156:$F161,"<>") -> 0.06
B156: 3 | C156: 5.1.1 | E156: Tag XXX / Part 1 | H156: Component | I156: =SUMIFS(I157:I158,$F157:$F158,"<>") -> 0.04 | J156: =SUMIFS(J157:J158,$F157:$F158,"<>") -> 1
B157: 4 | F157: MF.PR1.INS.1011 | G157: Final Inspection & Test of Tag XXX / Part 1 | H157: Activity | I157: 0.02 | J157: =IF($I$156>0,I157/$I$156,0) -> 0.5
B158: 4 | F158: MF.PR1.PKG.1011 | G158: Packing of Tag XXX / Part 1 | H158: Activity | I158: 0.02 | J158: =IF($I$156>0,I158/$I$156,0) -> 0.5
B159: 3 | C159: 5.1.2 | E159: Tag ZZZ / Part 2 | H159: Component | I159: =SUMIFS(I160:I161,$F160:$F161,"<>") -> 0.02 | J159: =SUMIFS(J160:J161,$F160:$F161,"<>") -> 1
B160: 4 | F160: MF.PR2.INS.2011 | G160: Final Inspection & Test of Tag ZZZ / Part 2 | H160: Activity | I160: 0.01 | J160: =IF($I$159>0,I160/$I$159,0) -> 0.5
B161: 4 | F161: MF.PR2.PKG.2012 | G161: Packing of Tag ZZZ / Part2 | H161: Activity | I161: 0.01 | J161: =IF($I$159>0,I161/$I$159,0) -> 0.5
B162: 2 | C162: 5.2 | D162: Priority II (Documents Related to Tag WWW, Tag YYY) | H162: Priority | I162: =SUMIFS(I163:I168,$F163:$F168,"<>") -> 0.03
B163: 3 | C163: 5.2.1 | E163: Tag WWW / Part 3 | H163: Component | I163: =SUMIFS(I164:I165,$F164:$F165,"<>") -> 0.02 | J163: =SUMIFS(J164:J165,$F164:$F165,"<>") -> 1
B164: 4 | F164: MF.PR3.INS.3011 | G164: Final Inspection & Test of Tag WWW / Part 3 | H164: Activity | I164: 0.01 | J164: =IF($I$163>0,I164/$I$163,0) -> 0.5
B165: 4 | F165: MF.PR3.PKG.3012 | G165: Packing of Tag WWW / Part 3 | H165: Activity | I165: 0.01 | J165: =IF($I$163>0,I165/$I$163,0) -> 0.5
B166: 3 | C166: 5.2.2 | E166: Tag YYY / Part 4 | H166: Component | I166: =SUMIFS(I167:I168,$F167:$F168,"<>") -> 0.01 | J166: =SUMIFS(J167:J168,$F167:$F168,"<>") -> 1
B167: 4 | F167: MF.PR4.INS.4011 | G167: Final Inspection & Test of Tag YYY / Part 4 | H167: Activity | I167: 0.005 | J167: =IF($I$166>0,I167/$I$166,0) -> 0.5
B168: 4 | F168: MF.PR4.PKG.4012 | G168: Packing of Tag YYY / Part 4 | H168: Activity | I168: 0.005 | J168: =IF($I$166>0,I168/$I$166,0) -> 0.5
B169: 2 | C169: 5.3 | D169: Priority III (Documents Related to Tag PPP, Tag GGG, Tag SSS) | H169: Priority | I169: =SUMIFS(I170:I172,$F170:$F172,"<>") -> 0.01
B170: 3 | C170: 5.3.1 | E170: Tag PPP , G, S / Part 5 | H170: Component | I170: =SUMIFS(I171:I172,$F171:$F172,"<>") -> 0.01 | J170: =SUMIFS(J171:J172,$F171:$F172,"<>") -> 1
B171: 4 | F171: MF.PR5.INS.5011 | G171: Final Inspection & Test of Tag PPP, G, S / Part 5 | H171: Activity | I171: 0.005 | J171: =IF($I$170>0,I171/$I$170,0) -> 0.5
B172: 4 | F172: MF.PR5.PKG.5012 | G172: Packing of Tag PPP, G, S / Part 5 | H172: Activity | I172: 0.005 | J172: =IF($I$170>0,I172/$I$170,0) -> 0.5
B173: 1 | C173: Ex-Work/ FOB/ CFR/ Transportation and Delivery at Site | H173: PHASE | I173: =SUMIFS(I174:I186,$F174:$F186,"<>") -> 0.1
B174: 2 | C174: 6.1 | D174: Priority I (Documents Related to Tag XXX, Tag Z) | H174: Priority | I174: =SUMIFS(I175:I178,$F175:$F178,"<>") -> 0.05
B175: 3 | C175: 6.1.1 | E175: Tag XXX / Part 1 | H175: Component | I175: =SUMIFS(I176:I176,$F176:$F176,"<>") -> 0.03 | J175: =SUMIFS(J176:J176,$F176:$F176,"<>") -> 1
B176: 4 | F176: MF.PR1.DLV.1011 | G176: Delivery at Site of Tag XXX / Part 1 | H176: Activity | I176: 0.03 | J176: =IF($I$175>0,I176/$I$175,0) -> 1
B177: 3 | C177: 6.1.2 | E177: Tag ZZZ / Part 2 | H177: Component | I177: =SUMIFS(I178:I178,$F178:$F178,"<>") -> 0.02 | J177: =SUMIFS(J178:J178,$F178:$F178,"<>") -> 1
B178: 4 | F178: MF.PR2.DLV.2011 | G178: Delivery at Site of Tag ZZZ / Part 2 | H178: Activity | I178: 0.02 | J178: =IF($I$177>0,I178/$I$177,0) -> 1
B179: 2 | C179: 6.2 | D179: Priority II (Documents Related to Tag WWW, Tag YYY) | H179: Priority | I179: =SUMIFS(I180:I183,$F180:$F183,"<>") -> 0.04
B180: 3 | C180: 6.2.1 | E180: Tag WWW / Part 3 | H180: Component | I180: =SUMIFS(I181:I181,$F181:$F181,"<>") -> 0.02 | J180: =SUMIFS(J181:J181,$F181:$F181,"<>") -> 1
B181: 4 | F181: MF.PR3.DLV.3011 | G181: Delivery at Site of Tag WWW / Part 3 | H181: Activity | I181: 0.02 | J181: =IF($I$180>0,I181/$I$180,0) -> 1
B182: 3 | C182: 6.2.2 | E182: Tag YYY / Part 4 | H182: Component | I182: =SUMIFS(I183:I183,$F183:$F183,"<>") -> 0.02 | J182: =SUMIFS(J183:J183,$F183:$F183,"<>") -> 1
B183: 4 | F183: MF.PR4.DLV.4011 | G183: Delivery at Site of Tag YYY / Part 4 | H183: Activity | I183: 0.02 | J183: =IF($I$182>0,I183/$I$182,0) -> 1
B184: 2 | C184: 6.3 | D184: Priority III (Documents Related to Tag PPP, Tag GGG, Tag SSS) | H184: Priority | I184: =SUMIFS(I185:I186,$F185:$F186,"<>") -> 0.01
B185: 3 | C185: 6.3.1 | E185: Tag PPP , G, S / Part 5 | H185: Component | I185: =SUMIFS(I186:I186,$F186:$F186,"<>") -> 0.01 | J185: =SUMIFS(J186:J186,$F186:$F186,"<>") -> 1
B186: 4 | F186: MF.PR5.DLV.5011 | G186: Delivery at Site of Tag P, G, S / Part 5 | H186: Activity | I186: 0.01 | J186: =IF($I$185>0,I186/$I$185,0) -> 1
B187: 1 | C187: Final Book | H187: PHASE | I187: =SUMIFS(I188:I192,$F188:$F192,"<>") -> 0.05
B188: 2 | C188: 7.1 | D188: MR No. | H188: Item | I188: =SUMIFS(I189:I192,$F189:$F192,"<>") -> 0.05
B189: 3 | C189: 7.1.1 | E189: Soft Copy of Final Book Package | H189: Component | I189: =SUMIFS(I190:I190,$F190:$F190,"<>") -> 0.03 | J189: =SUMIFS(J190:J190,$F190:$F190,"<>") -> 1
B190: 4 | F190: FB.5023.SFT.1011 | G190: Submission of Soft Copy of Final Documents | H190: Activity | I190: 0.03 | J190: =IF($I$189>0,I190/$I$189,0) -> 1
B191: 3 | C191: 7.1.2 | E191: Hard Copy of Final Book Package | H191: Component | I191: =SUMIFS(I192:I192,$F192:$F192,"<>") -> 0.02 | J191: =SUMIFS(J192:J192,$F192:$F192,"<>") -> 1
B192: 4 | F192: FB.5023.HRD.1011 | G192: Submission of Hard Copy of Final Documents | H192: Activity | I192: 0.02 | J192: =IF($I$191>0,I192/$I$191,0) -> 1
